bitfinex/quotes_SOLUSD_20250317
["timestamp","ask_amount","ask_price","bid_price","bid_amount"]
[1742173712485,18.64964886,128.19,128.17,0.063]
[1742173713057,10.64360692,128.18,128.17,0.063]
[1742173714184,10.92793006,128.18,128.17,0.063]
[1742173714859,18.72943006,128.18,128.17,0.063]
[1742173721080,37.37907892,128.18,128.17,0.063]
[1742173726371,37.37907892,128.18,128.17,0.0001]
[1742173727492,18.933972,128.17,128.16,0.0001]
[1742173727676,29.57757892,128.17,128.16,0.0001]
[1742173728284,72.1520066,128.17,128.16,0.0001]
[1742173728491,79.9541066,128.17,128.16,0.0001]
[1742173732183,79.9541066,128.17,128.12,0.063]
[1742173732184,20.28432314,128.13,128.12,0.063]
[1742173732389,49.57757892,128.13,128.12,0.063]
[1742173732590,57.38207892,128.13,128.12,0.063]
[1742173736009,18.64964886,128.12,128.1,0.063]
[1742173736209,29.29325578,128.11,128.1,0.063]
[1742173736906,37.09895578,128.11,128.1,0.063]
[1742173739713,37.38327892,128.11,128.1,0.063]
[1742173739910,37.38327892,128.11,128.1,0.0001]
[1742173740900,79.9577066,128.11,128.1,0.0001]
[1742173741690,37.38327892,128.11,128.1,0.0001]
[1742173744626,26.739672,128.11,128.1,0.0001]
[1742173745214,18.64964886,128.11,128.1,0.0001]
[1742173745410,29.29325578,128.11,128.1,0.0001]
[1742173745997,37.09895578,128.11,128.1,0.0001]
[1742173746215,18.64964886,128.1,128.01,0.28432314]
[1742173746405,29.29325578,128.1,128.06,10.64360692]
[1742173746720,37.09995578,128.1,128.06,10.64360692]
[1742173747097,26.45634886,128.1,128.06,10.64360692]
[1742173749117,37.09995578,128.1,128.06,10.64360692]
[1742173750534,37.09995578,128.1,128.05,18.75430692]
[1742173753824,37.09995578,128.1,128.05,18.78430692]
[1742173754421,18.64964886,128.08,128.05,8.1407]
[1742173755521,26.45774886,128.08,128.05,8.1407]
[1742173756221,26.45774886,128.08,128.05,18.78430692]
[1742173756403,18.64964886,128.08,128.05,18.78430692]
[1742173756603,26.45734886,128.08,128.05,18.78430692]
[1742173758623,18.64964886,128.08,128.05,26.59370692]
[1742173759326,18.64964886,128.08,128.05,18.78430692]
[1742173760138,26.45734886,128.08,128.05,18.78430692]
[1742173760635,26.45734886,128.08,128.05,8.1407]
[1742173761226,37.10095578,128.08,128.05,0.03]
[1742173761427,10.64360692,128.07,128.05,0.03]
[1742173762240,7.8088,128.06,128.05,0.03]
[1742173762433,26.45844886,128.06,128.05,0.03]
[1742173763224,18.64964886,128.06,128.05,0.03]
[1742173763531,7.8079,128.08,128.05,0.03]
[1742173763743,18.64964886,128.07,128.05,0.03]
[1742173765625,26.45804886,128.07,128.05,0.03]
[1742173766634,18.64964886,128.06,128.05,0.03]
[1742173767038,26.45844886,128.06,128.05,0.03]
[1742173768734,37.38637892,128.06,128.05,0.03]
[1742173775316,26.45844886,128.06,128.05,0.03]
[1742173775631,7.8085,128.07,128.05,0.03]
[1742173776337,18.64964886,128.06,128.05,0.03]
[1742173779841,18.45150692,128.08,128.05,0.03]
[1742173784739,18.85481043,128.09,128.07,10.64360692]
[1742173784740,0.063,128.09,128.07,10.64360692]
[1742173785052,0.063,128.09,128.08,10.64360692]
[1742173785635,0.063,128.09,128.07,10.64360692]
[1742173787626,0.063,128.09,128.07,18.45170692]
[1742173788535,0.063,128.09,128.06,10.64360692]
[1742173788844,0.063,128.09,128.05,18.40480692]
[1742173789047,18.64964886,128.08,128.05,7.7612]
[1742173789232,29.29325578,128.08,128.05,0.03]
[1742173790227,7.8082,128.07,128.05,0.03]
[1742173791928,18.64964886,128.06,128.05,0.03]
[1742173792548,26.45844886,128.06,128.05,0.03]
[1742173795246,37.10205578,128.06,128.05,0.03]
[1742173796438,26.45844886,128.06,128.04,0.03]
[1742173797634,18.64964886,128.06,128.04,0.03]
[1742173798550,26.45884886,128.06,128.04,0.03]
[1742173801556,29.57757892,128.05,128.04,0.03]
[1742173801773,37.38697892,128.05,128.04,0.03]
[1742173802147,44.30697892,128.05,128.04,0.03]
[1742173805767,33.663372,128.05,128.04,0.03]
[1742173806086,18.64964886,128.05,128.04,0.03]
[1742173806243,26.45904886,128.05,128.04,0.03]
[1742173806939,18.64964886,128.05,128.04,0.03]
[1742173808261,26.45904886,128.05,128.04,0.03]
[1742173812245,37.10265578,128.05,128.04,0.03]
[1742173812664,37.38697892,128.05,128.04,0.03]
[1742173819463,44.30697892,128.05,128.04,0.03]
[1742173821071,18.933972,128.04,128.03,0.03]
[1742173821275,29.57757892,128.04,128.03,0.03]
[1742173821689,29.57757892,128.04,128.03,0.0001]
[1742173822207,72.1520066,128.04,127.99,0.063]
[1742173822485,29.29325578,128.0,127.99,0.063]
[1742173823514,18.64964886,128.0,127.99,0.063]
[1742173824117,29.29325578,128.0,127.99,0.063]
[1742173824715,29.57757892,128.0,127.99,0.063]
[1742173824910,37.39007892,128.0,127.99,0.063]
[1742173828216,29.29325578,128.0,127.99,0.063]
[1742173828400,18.64964886,128.0,127.99,0.063]
[1742173829705,26.46214886,128.0,127.99,0.063]
[1742173830016,37.10575578,128.0,127.99,0.063]
[1742173830930,37.39007892,128.0,127.99,0.063]
[1742173833828,37.39007892,128.0,127.98,0.03]
[1742173834031,0.28432314,127.98,127.97,0.03]
[1742173834238,37.39127892,127.98,127.97,0.03]
[1742173836115,37.39127892,127.98,127.91,0.03]
[1742173836116,0.14216157,127.94,127.91,0.03]
[1742173836315,7.8167,127.93,127.91,0.03]
[1742173837331,26.46594886,127.94,127.91,10.67360692]
[1742173838540,7.8155,127.95,127.92,7.7197]
[1742173838839,18.64964886,127.98,127.92,46.57052076]
[1742173839026,18.64964886,127.98,127.94,10.64360692]
[1742173839644,29.29325578,127.98,127.93,10.64360692]
[1742173839821,10.64360692,127.97,127.92,25.28330692]
[1742173840021,10.64360692,127.96,127.92,14.6397]
[1742173840343,26.46564886,127.95,127.92,7.7197]
[1742173840840,37.10925578,127.95,127.92,7.7197]
[1742173841042,26.46564886,127.95,127.92,7.7197]
[1742173841742,37.10925578,127.95,127.92,7.7197]
[1742173841920,26.46564886,127.95,127.92,7.7197]
[1742173844352,37.10925578,127.95,127.92,7.7197]
[1742173845334,26.46564886,127.95,127.92,7.7197]
[1742173845541,37.10925578,127.95,127.92,7.7197]
[1742173845720,10.78576849,127.94,127.91,0.03]
[1742173846630,18.64964886,127.92,127.91,0.03]
[1742173847932,29.29325578,127.92,127.91,0.03]
[1742173848136,29.43541735,127.92,127.91,0.03]
[1742173848320,0.14216157,127.91,127.86,7.8686]
[1742173848535,18.64964886,127.87,127.86,7.8686]
[1742173848734,18.64964886,127.87,127.86,0.03]
[1742173850545,26.47004886,127.87,127.86,0.03]
[1742173851347,37.39797892,127.87,127.86,0.03]
[1742173853426,44.31797892,127.87,127.86,0.03]
[1742173855435,32.8,127.9,127.86,0.03]
[1742173855436,18.64964886,127.9,127.86,0.03]
[1742173855638,10.78576849,127.87,127.86,0.03]
[1742173856039,29.43541735,127.87,127.86,0.03]
[1742173856953,37.25581735,127.87,127.86,0.03]
[1742173857739,18.64964886,127.87,127.86,0.03]
[1742173857938,0.14216157,127.91,127.86,0.03]
[1742173858142,10.64360692,127.88,127.86,0.03]
[1742173859351,18.46370692,127.88,127.86,0.03]
[1742173859846,18.46300692,127.89,127.86,0.03]
[1742173863031,10.64360692,127.88,127.86,0.03]
[1742173863453,18.46360692,127.88,127.86,0.03]
[1742173863857,18.46300692,127.89,127.86,0.03]
[1742173864935,18.64964886,127.87,127.86,0.03]
[1742173865755,18.46380692,127.88,127.86,0.03]
[1742173866062,7.8202,127.88,127.86,0.03]
[1742173867864,18.64964886,127.92,127.87,10.64360692]
[1742173868064,7.8167,127.93,127.89,10.64360692]
[1742173868248,18.64964886,127.92,127.89,10.64360692]
[1742173868439,18.64964886,127.92,127.88,10.64360692]
[1742173869150,29.29325578,127.92,127.88,10.64360692]
[1742173869361,18.64964886,127.88,127.86,0.03]
[1742173871570,26.47004886,127.88,127.86,0.03]
[1742173872871,37.11365578,127.88,127.86,0.03]
[1742173873062,26.47004886,127.88,127.86,0.03]
[1742173874746,18.64964886,127.88,127.86,0.03]
[1742173875446,7.8194,127.89,127.86,0.03]
[1742173875447,0.063,127.91,127.87,10.64360692]
[1742173875775,18.71264886,127.91,127.88,10.64360692]
[1742173876074,26.53064886,127.91,127.87,10.64360692]
[1742173877271,7.881,127.91,127.9,20.0]
[1742173877463,0.063,127.91,127.9,10.64360692]
[1742173878252,0.063,127.91,127.88,10.64360692]
[1742173878775,0.063,127.91,127.9,10.64360692]
[1742173879668,0.063,127.91,127.9,18.46220692]
[1742173880068,0.063,127.91,127.9,26.08470692]
[1742173882071,0.063,127.91,127.9,26.22686849]
[1742173884879,0.063,127.91,127.9,338.22686849]
[1742173885457,0.063,127.91,127.9,26.22686849]
[1742173885662,0.063,127.91,127.9,26.08470692]
[1742173887301,0.063,127.91,127.9,18.26610692]
[1742173888182,0.063,127.91,127.9,26.08470692]
[1742173890487,0.063,127.91,127.9,7.6225]
[1742173892086,0.063,127.91,127.89,10.64360692]
[1742173893279,0.063,127.91,127.89,18.46260692]
[1742173893487,0.063,127.91,127.9,10.64360692]
[1742173894700,0.063,127.91,127.9,18.46220692]
[1742173902101,0.063,127.91,127.9,10.64360692]
[1742173902276,0.063,127.91,127.89,7.8189]
[1742173902592,0.063,127.91,127.9,10.64360692]
[1742173906901,0.063,127.91,127.9,10.67360692]
[1742173908495,0.063,127.91,127.9,18.49220692]
[1742173910100,0.063,127.91,127.9,330.49220692]
[1742173912303,0.063,127.91,127.9,330.63436849]
[1742173913399,0.063,127.91,127.9,18.63436849]
[1742173914796,0.063,127.94,127.92,0.14216157]
[1742173915005,0.063,127.94,127.93,17.70576849]
[1742173915208,0.063,127.94,127.93,25.66463006]
[1742173915790,12.21106916,128.01,127.96,20.0]
[1742173916103,18.64964886,128.0,127.97,10.64360692]
[1742173916302,29.29325578,128.0,127.96,61.37508206]
[1742173916986,29.29325578,128.0,127.95,10.64360692]
[1742173917203,7.8131,127.99,127.95,10.64360692]
[1742173919407,7.8761,127.99,127.95,10.64360692]
[1742173919701,18.51970692,127.99,127.94,10.64360692]
[1742173920602,18.64964886,127.96,127.92,61.37508206]
[1742173920783,18.64964886,127.96,127.92,72.01868898]
[1742173921380,18.64964886,127.96,127.93,10.64360692]
[1742173921587,26.46514886,127.96,127.93,10.64360692]
[1742173922705,26.46514886,127.96,127.92,72.01868898]
[1742173926100,37.10875578,127.96,127.9,0.03]
[1742173926310,18.64964886,127.94,127.9,10.67360692]
[1742173926608,18.64964886,127.94,127.9,0.03]
[1742173926990,18.64964886,127.94,127.9,10.67360692]
[1742173928105,29.29325578,127.94,127.9,10.67360692]
[1742173928296,7.8167,127.93,127.9,10.67360692]
[1742173929789,26.46604886,127.94,127.9,10.67360692]
[1742173929985,7.8164,127.94,127.9,10.67360692]
[1742173930185,7.8164,127.94,127.91,10.64360692]
[1742173931005,7.8164,127.94,127.9,10.67360692]
[1742173932097,18.46000692,127.94,127.9,0.03]
[1742173932401,7.8173,127.92,127.9,0.03]
[1742173933805,26.46634886,127.93,127.9,0.03]
[1742173935314,37.10995578,127.93,127.9,0.03]
[1742173937215,26.46634886,127.93,127.9,0.03]
[1742173937395,37.10995578,127.93,127.9,0.03]
[1742173939012,26.46634886,127.93,127.9,0.03]
[1742173939403,37.10995578,127.93,127.9,0.03]
[1742173942516,26.46634886,127.93,127.9,0.03]
[1742173943817,37.10995578,127.93,127.9,0.03]
[1742173944129,49.43541735,127.91,127.9,0.03]
[1742173945213,49.29325578,127.91,127.9,0.03]
[1742173946419,57.11115578,127.91,127.9,0.03]
[1742173947399,57.25331735,127.91,127.9,0.0001]
[1742173950297,57.39547892,127.91,127.9,0.0001]
[1742173950498,59.06097892,127.91,127.9,0.0001]
[1742173964840,20.14216157,127.87,127.81,2.7969109]
[1742173965140,10.64360692,127.84,127.81,2.7969109]
[1742173966659,7.8228,127.83,127.81,2.7969109]
[1742173966846,18.64964886,127.82,127.81,2.7969109]
[1742173968255,29.57757892,127.82,127.81,2.7969109]
[1742173968433,18.64964886,127.82,127.81,2.7969109]
[1742173969050,26.47314886,127.82,127.81,2.7969109]
[1742173969257,37.11675578,127.82,127.81,2.7969109]
[1742173970342,26.47314886,127.82,127.81,2.7969109]
[1742173970657,37.11675578,127.82,127.81,2.7969109]
[1742173973560,7.8235,127.82,127.81,2.7969109]
[1742173974061,26.47314886,127.82,127.81,2.7969109]
[1742173974460,37.11675578,127.82,127.81,2.7969109]
[1742173974648,26.47314886,127.82,127.81,2.7969109]
[1742173978064,26.47314886,127.82,127.81,2.8269109]
[1742173984382,18.46710692,127.82,127.81,2.8269109]
[1742173984770,7.8235,127.82,127.81,2.8269109]
[1742173985878,37.11675578,127.82,127.81,2.8269109]
[1742173987873,26.47314886,127.82,127.81,2.8269109]
[1742173988074,37.11675578,127.82,127.81,2.8269109]
[1742173988680,26.47314886,127.82,127.81,2.8269109]
[1742173989282,37.11675578,127.82,127.81,2.8269109]
[1742173994384,37.11675578,127.82,127.81,1.09e-05]
[1742173994385,44.32107892,127.82,127.81,1.09e-05]
[1742173996083,44.03675578,127.82,127.81,1.09e-05]
[1742173996473,37.11675578,127.82,127.81,1.09e-05]
[1742173996790,26.47314886,127.82,127.81,1.09e-05]
[1742173996979,37.11675578,127.82,127.81,1.09e-05]
[1742174002001,37.40107892,127.82,127.81,1.09e-05]
[1742174002371,37.46407892,127.82,127.81,1.09e-05]
[1742174003104,37.17975578,127.82,127.81,1.09e-05]
[1742174016288,18.53010692,127.82,127.81,1.09e-05]
[1742174016494,7.8865,127.82,127.81,1.09e-05]
[1742174016880,26.53614886,127.82,127.81,1.09e-05]
[1742174017107,37.17975578,127.82,127.81,1.09e-05]
[1742174017594,26.53614886,127.82,127.81,1.09e-05]
[1742174018386,37.17975578,127.82,127.81,1.09e-05]
[1742174019414,26.53614886,127.82,127.81,1.09e-05]
[1742174021700,37.17975578,127.82,127.81,1.09e-05]
[1742174022713,26.53614886,127.82,127.81,1.09e-05]
[1742174022892,37.17975578,127.82,127.81,1.09e-05]
[1742174026791,30.64360692,127.8,127.79,0.0001]
[1742174026991,37.56360692,127.8,127.79,0.0001]
[1742174027997,45.38830692,127.8,127.79,0.0001]
[1742174029016,82.02151441,127.8,127.79,0.0001]
[1742174029519,71.37790749,127.8,127.79,0.0001]
[1742174029729,64.45790749,127.8,127.79,0.0001]
[1742174030614,27.8247,127.8,127.79,0.0001]
[1742174031001,57.11795578,127.8,127.79,0.0001]
[1742174034626,57.11795578,127.8,127.75,9.67370692]
[1742174034828,10.64360692,127.79,127.74,69.11138206]
[1742174035029,76.67975578,127.8,127.75,10.64360692]
[1742174035321,29.29325578,127.79,127.74,69.11138206]
[1742174035528,29.29325578,127.79,127.74,79.75498898]
[1742174037028,47.3865,127.8,127.74,79.75498898]
[1742174037029,27.8247,127.8,127.76,10.64360692]
[1742174037829,27.8247,127.8,127.75,10.64360692]
[1742174038405,7.8247,127.8,127.76,10.64360692]
[1742174038608,7.8247,127.8,127.74,76.93918206]
[1742174038609,7.8247,127.8,127.77,10.64360692]
[1742174039336,7.8241,127.81,127.77,10.64360692]
[1742174039631,10.64360692,127.79,127.74,79.75498898]
[1742174039805,29.29325578,127.8,127.75,10.64360692]
[1742174040008,29.29325578,127.8,127.76,0.03]
[1742174041547,7.8253,127.79,127.76,0.03]
[1742174043115,10.64360692,127.78,127.76,0.03]
[1742174043530,7.8265,127.77,127.76,0.03]
[1742174043832,37.11975578,127.77,127.76,0.03]
[1742174044036,18.64964886,127.76,127.71,61.37508206]
[1742174044241,10.64360692,127.75,127.7,18.48640692]
[1742174044546,29.29325578,127.76,127.71,10.64360692]
[1742174045249,10.64360692,127.75,127.7,18.48640692]
[1742174045613,18.47140692,127.75,127.7,18.48640692]
[1742174047128,18.47140692,127.75,127.7,10.64360692]
[1742174047519,18.47240692,127.74,127.69,10.64360692]
[1742174048041,7.8288,127.74,127.7,10.64360692]
[1742174048734,18.47160692,127.75,127.7,10.64360692]
[1742174050537,18.47160692,127.75,127.7,18.47430692]
[1742174051243,18.47160692,127.75,127.7,10.64360692]
[1742174051740,18.47160692,127.75,127.7,18.50430692]
[1742174052131,10.64360692,127.74,127.7,10.67360692]
[1742174052324,18.47160692,127.75,127.7,10.67360692]
[1742174052532,18.47160692,127.75,127.7,18.50430692]
[1742174053128,18.47160692,127.75,127.71,10.64360692]
[1742174053337,7.828,127.75,127.71,10.64360692]
[1742174054224,18.47160692,127.75,127.71,10.64360692]
[1742174056555,18.47160692,127.75,127.71,18.47380692]
[1742174056851,37.12065578,127.76,127.71,18.47380692]
[1742174057359,37.12065578,127.76,127.72,10.64360692]
[1742174057736,37.12065578,127.76,127.71,18.47380692]
[1742174058956,26.47704886,127.76,127.71,18.47380692]
[1742174059154,37.12065578,127.76,127.71,18.47380692]
[1742174060452,10.64360692,127.76,127.71,18.47380692]
[1742174060751,37.11855578,127.79,127.74,10.64360692]
[1742174060938,37.11855578,127.79,127.75,10.64360692]
[1742174061132,30.64360692,127.76,127.71,61.37508206]
[1742174061354,17.56360692,127.78,127.73,10.64360692]
[1742174061745,6.92,127.78,127.74,10.64360692]
[1742174062758,7.8265,127.77,127.74,10.64360692]
[1742174064148,7.8265,127.77,127.73,10.64360692]
[1742174067973,7.8265,127.77,127.74,10.64360692]
[1742174068871,7.8265,127.77,127.73,10.64360692]
[1742174069078,10.64360692,127.76,127.72,10.64360692]
[1742174069370,38.03650692,127.77,127.72,10.64360692]
[1742174070052,29.29325578,127.76,127.71,61.40508206]
[1742174070253,29.29325578,127.76,127.71,72.04868898]
[1742174070656,7.8277,127.75,127.71,72.04868898]
[1742174071770,7.8277,127.75,127.72,10.64360692]
[1742174071968,6.92,127.78,127.73,10.64360692]
[1742174072272,7.8259,127.78,127.74,10.64360692]
[1742174073267,18.46950692,127.78,127.73,10.64360692]
[1742174075074,18.64964886,127.77,127.73,10.64360692]
[1742174075374,10.64360692,127.76,127.71,72.04868898]
[1742174075776,10.64360692,127.75,127.71,61.40508206]
[1742174076664,7.8284,127.74,127.71,61.40508206]
[1742174078454,7.8284,127.74,127.71,72.04868898]
[1742174078975,7.8284,127.74,127.71,61.40508206]
[1742174086477,7.8284,127.74,127.71,0.03]
[1742174088258,7.8284,127.74,127.71,10.67360692]
[1742174090372,7.8281,127.75,127.71,10.67360692]
[1742174093591,18.47170692,127.75,127.71,10.67360692]
[1742174094192,18.47170692,127.75,127.71,0.03]
[1742174095688,18.47170692,127.75,127.71,10.67360692]
[1742174097092,7.8281,127.75,127.71,10.67360692]
[1742174097785,0.063,127.76,127.72,10.64360692]
[1742174098770,0.063,127.76,127.73,10.64360692]
[1742174100171,0.063,127.76,127.73,18.47240692]
[1742174101990,0.063,127.76,127.73,10.64360692]
[1742174103874,0.063,127.76,127.73,18.47240692]
[1742174104192,0.063,127.76,127.72,10.64360692]
[1742174104193,10.70660692,127.76,127.72,10.64360692]
[1742174104379,10.64360692,127.74,127.71,61.40508206]
[1742174104778,12.15020692,127.75,127.71,61.40508206]
[1742174104980,1.5066,127.75,127.71,72.04868898]
[1742174105178,12.15020692,127.75,127.71,79.87878898]
[1742174105391,10.64360692,127.73,127.71,0.03]
[1742174105696,38.47320692,127.72,127.71,0.03]
[1742174106000,10.64360692,127.74,127.71,0.03]
[1742174106202,38.62785578,127.75,127.71,10.67360692]
[1742174106501,38.62785578,127.75,127.71,0.03]
[1742174106696,19.97820692,127.75,127.71,10.67360692]
[1742174107077,10.64360692,127.74,127.71,0.03]
[1742174107482,12.32818615,127.73,127.71,0.03]
[1742174108273,12.32818615,127.73,127.71,10.67360692]
[1742174109175,24.65637231,127.74,127.71,10.67360692]
[1742174109380,9.3344,127.75,127.71,10.67360692]
[1742174111306,7.8903,127.76,127.72,10.64360692]
[1742174112204,7.8903,127.76,127.72,18.47310692]
[1742174113305,7.8903,127.76,127.72,10.64360692]
[1742174114191,0.063,127.76,127.72,18.47300692]
[1742174114501,0.063,127.76,127.72,10.64360692]
[1742174114682,10.70660692,127.76,127.71,10.67360692]
[1742174114882,10.70660692,127.76,127.71,18.50380692]
[1742174115083,10.70660692,127.76,127.71,10.67360692]
[1742174115492,10.70660692,127.76,127.72,10.64360692]
[1742174116300,18.53400692,127.76,127.72,10.64360692]
[1742174116892,18.53400692,127.76,127.72,18.47320692]
[1742174117197,7.8904,127.76,127.72,18.47320692]
[1742174117783,0.063,127.76,127.72,18.47320692]
[1742174117983,7.8902,127.76,127.73,10.64360692]
[1742174118182,0.063,127.76,127.73,10.64360692]
[1742174118399,0.063,127.76,127.72,18.47320692]
[1742174118593,0.063,127.76,127.72,79.84828898]
[1742174118998,0.063,127.76,127.73,10.64360692]
[1742174120498,0.063,127.76,127.73,18.47240692]
[1742174121014,0.063,127.76,127.73,10.64360692]
[1742174121395,0.063,127.76,127.72,79.84808898]
[1742174121795,10.70660692,127.76,127.72,79.84808898]
[1742174122514,18.53400692,127.76,127.72,61.37508206]
[1742174122717,10.64360692,127.75,127.72,61.37508206]
[1742174122915,18.53400692,127.76,127.72,61.37508206]
[1742174123791,18.53400692,127.76,127.72,72.01868898]
[1742174124602,7.8904,127.76,127.72,72.01868898]
[1742174125016,18.53400692,127.76,127.72,72.01868898]
[1742174125712,18.53400692,127.76,127.72,61.37508206]
[1742174125905,18.53400692,127.76,127.72,61.40508206]
[1742174126710,7.8904,127.76,127.72,61.40508206]
[1742174130209,18.53400692,127.76,127.72,61.40508206]
[1742174130503,7.8904,127.76,127.72,61.40508206]
[1742174131727,7.8904,127.76,127.72,69.23458206]
[1742174131908,7.8904,127.76,127.72,61.40508206]
[1742174132324,7.8904,127.76,127.72,72.04868898]
[1742174132923,29.29325578,127.75,127.72,0.03]
[1742174133727,7.8284,127.74,127.72,0.03]
[1742174138933,18.47200692,127.74,127.72,0.03]
[1742174139422,7.8284,127.74,127.72,0.03]
[1742174141932,20.21858615,127.76,127.73,10.64360692]
[1742174142615,20.21858615,127.76,127.72,10.67360692]
[1742174143521,7.8904,127.76,127.73,10.64360692]
[1742174143721,0.063,127.76,127.73,10.64360692]
[1742174144942,0.063,127.76,127.73,72.01868898]
[1742174148226,0.063,127.76,127.73,61.37508206]
[1742174148831,0.063,127.76,127.73,72.01868898]
[1742174149723,0.063,127.76,127.75,10.64360692]
[1742174149923,0.063,127.76,127.75,72.01868898]
[1742174150324,0.063,127.76,127.75,61.37508206]
[1742174152844,0.063,127.76,127.72,327.5269]
[1742174152845,0.063,127.76,127.72,79.71618898]
[1742174154247,7.8284,127.74,127.72,61.40508206]
[1742174154632,18.47150692,127.75,127.72,61.40508206]
[1742174155834,7.8903,127.76,127.72,72.04868898]
[1742174156042,7.8903,127.76,127.73,10.64360692]
[1742174156755,0.063,127.76,127.73,10.64360692]
[1742174157149,0.063,127.76,127.72,72.04868898]
[1742174157453,10.70660692,127.76,127.72,61.40508206]
[1742174157634,0.063,127.76,127.72,72.04868898]
[1742174158531,0.063,127.76,127.75,10.64360692]
[1742174158842,0.063,127.76,127.75,18.47130692]
[1742174160035,0.063,127.76,127.75,79.84638898]
[1742174160235,0.063,127.76,127.75,72.01868898]
[1742174160436,0.063,127.76,127.75,61.37508206]
[1742174160758,0.063,127.76,127.72,72.04868898]
[1742174161750,10.70660692,127.76,127.72,61.40508206]
[1742174161957,0.063,127.76,127.73,10.64360692]
[1742174162154,0.063,127.76,127.74,10.64360692]
[1742174162673,0.063,127.76,127.73,10.64360692]
[1742174162841,0.063,127.76,127.74,18.47200692]
[1742174164263,0.063,127.76,127.75,10.64360692]
[1742174165566,0.063,127.76,127.74,61.37508206]
[1742174165869,0.063,127.76,127.74,72.01868898]
[1742174166165,0.063,127.76,127.74,79.84698898]
[1742174166348,0.063,127.76,127.74,72.01868898]
[1742174166864,0.063,127.76,127.74,79.84678898]
[1742174167458,0.063,127.76,127.74,61.37508206]
[1742174167662,10.64360692,127.75,127.72,0.03]
[1742174168159,29.35625578,127.76,127.72,0.03]
[1742174168460,18.71264886,127.76,127.72,10.67360692]
[1742174168664,0.063,127.76,127.73,10.64360692]
[1742174168965,0.063,127.76,127.72,10.67360692]
[1742174169141,18.71264886,127.76,127.72,10.67360692]
[1742174169342,7.8277,127.75,127.72,10.67360692]
[1742174169963,7.8277,127.75,127.72,0.03]
[1742174171941,18.64964886,127.74,127.72,0.03]
[1742174173169,10.64360692,127.73,127.72,0.03]
[1742174173377,20.0,127.7,127.68,0.03]
[1742174173664,7.8339,127.65,127.61,69.32298206]
[1742174173851,18.47750692,127.65,127.61,69.32298206]
[1742174174054,7.8339,127.65,127.61,79.96658898]
[1742174174458,18.47750692,127.65,127.61,79.96658898]
[1742174174960,29.29325578,127.64,127.61,61.37508206]
[1742174175459,18.64964886,127.64,127.61,61.37508206]
[1742174176065,18.64964886,127.64,127.61,72.01868898]
[1742174176366,18.64964886,127.64,127.61,61.37508206]
[1742174177066,26.48434886,127.64,127.61,61.37508206]
[1742174177253,26.48434886,127.64,127.6,10.67360692]
[1742174177655,18.64964886,127.64,127.6,10.67360692]
[1742174177969,12.32818615,127.7,127.63,10.64360692]
[1742174178147,18.64964886,127.69,127.67,10.64360692]
[1742174178462,18.64964886,127.69,127.66,10.64360692]
[1742174179643,18.64964886,127.68,127.65,10.64360692]
[1742174180169,26.48074886,127.7,127.66,10.64360692]
[1742174180550,20.0,127.68,127.66,10.64360692]
[1742174181077,20.0,127.68,127.67,10.64360692]
[1742174181247,20.0,127.68,127.66,10.64360692]
[1742174181959,20.0,127.68,127.65,10.64360692]
[1742174182355,20.0,127.68,127.66,10.64360692]
[1742174182561,20.0,127.68,127.65,10.64360692]
[1742174182763,20.0,127.68,127.64,10.64360692]
[1742174183055,18.64964886,127.67,127.64,10.64360692]
[1742174183245,18.64964886,127.67,127.63,18.47870692]
[1742174184175,37.12605578,127.67,127.62,79.85428898]
[1742174184770,37.12605578,127.67,127.63,10.64360692]
[1742174185070,37.12605578,127.67,127.63,18.47870692]
[1742174185263,26.48244886,127.67,127.63,18.47870692]
[1742174185443,18.64964886,127.67,127.63,18.47870692]
[1742174186364,18.64964886,127.67,127.61,0.03]
[1742174186365,18.64964886,127.65,127.61,0.03]
[1742174186664,18.64964886,127.65,127.61,10.67360692]
[1742174186870,10.64360692,127.65,127.61,10.67360692]
[1742174187053,10.64360692,127.65,127.61,18.50980692]
[1742174187256,10.64360692,127.65,127.61,10.67360692]
[1742174187453,18.47750692,127.65,127.61,10.67360692]
[1742174187845,18.47750692,127.65,127.61,0.03]
[1742174187846,10.64360692,127.64,127.61,0.03]
[1742174188250,7.8339,127.65,127.61,0.03]
[1742174188464,18.47750692,127.65,127.61,10.67360692]